[Event "Early-Titled-Tuesday-Blitz-April-02-2024"]
[Site "Chess.com"]
[Date "2024.04.02"]
[Round "11"]
[White "Revan_2002"]
[Black "rezamahdavi2008"]
[Result "1-0"]
[WhiteElo "2754"]
[BlackElo "2895"]
[TimeControl "180+1"]
[EndTime "10:08:10 PDT"]
[Termination "Revan_2002 won by resignation"]

1. d4 {[%clk 0:02:48.4]} 1... Nf6 {[%clk 0:02:59.8]} 2. c4 {[%clk 0:02:47.6]}
2... e6 {[%clk 0:03:00.3]} 3. Nf3 {[%clk 0:02:47.3]} 3... d5 {[%clk 0:03:00.5]}
4. Nc3 {[%clk 0:02:46.9]} 4... Bb4 {[%clk 0:02:52.8]} 5. Bg5 {[%clk 0:02:46.8]}
5... Nbd7 {[%clk 0:02:46.9]} 6. e3 {[%clk 0:02:46]} 6... c5 {[%clk 0:02:46.8]}
7. cxd5 {[%clk 0:02:46.4]} 7... exd5 {[%clk 0:02:43.3]} 8. Bd3 {[%clk
0:02:46.7]} 8... c4 {[%clk 0:02:43.6]} 9. Bf5 {[%clk 0:02:44.9]} 9... h6 {[%clk
0:02:31.3]} 10. Bh4 {[%clk 0:02:44.9]} 10... Nb6 {[%clk 0:02:26.9]} 11. Bxc8
{[%clk 0:02:36.3]} 11... Rxc8 {[%clk 0:02:27.8]} 12. O-O {[%clk 0:02:36.3]}
12... O-O {[%clk 0:02:28.3]} 13. Ne5 {[%clk 0:02:31.9]} 13... Be7 {[%clk
0:02:28.6]} 14. f4 {[%clk 0:02:27.9]} 14... Ne8 {[%clk 0:02:22.9]} 15. Bxe7
{[%clk 0:02:26.4]} 15... Qxe7 {[%clk 0:02:23.8]} 16. Qg4 {[%clk 0:02:18.8]}
16... f5 {[%clk 0:01:57.2]} 17. Qf3 {[%clk 0:02:15.3]} 17... Qe6 {[%clk
0:01:57.5]} 18. a4 {[%clk 0:02:14.1]} 18... a5 {[%clk 0:01:57.2]} 19. Kh1 {[%clk
0:02:11]} 19... Nd6 {[%clk 0:01:55.5]} 20. Rg1 {[%clk 0:02:07.8]} 20... Ne4
{[%clk 0:01:55.7]} 21. g4 {[%clk 0:01:59.1]} 21... Rc7 {[%clk 0:01:54.9]} 22.
gxf5 {[%clk 0:01:56.8]} 22... Qxf5 {[%clk 0:01:55.8]} 23. Nxe4 {[%clk 0:01:55]}
23... dxe4 {[%clk 0:01:49.1]} 24. Qe2 {[%clk 0:01:53.8]} 24... Nd5 {[%clk
0:01:45.4]} 25. Rg3 {[%clk 0:01:47.2]} 25... Rfc8 {[%clk 0:01:37]} 26. Rag1
{[%clk 0:01:45.3]} 26... Kh7 {[%clk 0:01:36.6]} 27. Qd2 {[%clk 0:01:29.3]} 27...
c3 {[%clk 0:01:30.1]} 28. bxc3 {[%clk 0:01:27]} 28... Nxc3 {[%clk 0:01:21.8]}
29. d5 {[%clk 0:01:25.8]} 29... g5 {[%clk 0:01:07.4]} 30. d6 {[%clk 0:01:16.8]}
30... Rd8 {[%clk 0:01:02.4]} 31. fxg5 {[%clk 0:00:58.4]} 31... h5 {[%clk
0:00:42.7]} 32. g6+ {[%clk 0:00:53.3]} 32... Kg8 {[%clk 0:00:43.2]} 33. Rg5
{[%clk 0:00:40.7]} 33... Qe6 {[%clk 0:00:17.9]} 34. g7 {[%clk 0:00:40.3]} 34...
Rxd6 {[%clk 0:00:15.6]} 35. Rxh5 {[%clk 0:00:32.4]} 35... Rxg7 {[%clk
0:00:11.5]} 36. Rxg7+ {[%clk 0:00:29.3]} 36... Kxg7 {[%clk 0:00:12.4]} 37. Qg2+
{[%clk 0:00:26.4]} 37... Qg6 {[%clk 0:00:03.6]} 38. Qxg6+ {[%clk 0:00:20.4]}
38... Rxg6 {[%clk 0:00:03.3]} 39. Nxg6 {[%clk 0:00:21.3]} 39... Kxg6 {[%clk
0:00:04.2]} 40. Rxa5 {[%clk 0:00:21.5]} 40... Kf6 {[%clk 0:00:01.4]} 41. Ra7
{[%clk 0:00:13.3]} 41... Nd1 {[%clk 0:00:01.4]} 42. Rxb7 {[%clk 0:00:13.1]}
42... Nxe3 {[%clk 0:00:02.3]} 43. a5 {[%clk 0:00:13.6]} 43... Nd5 {[%clk
0:00:02]} 44. a6 {[%clk 0:00:14]} 44... e3 {[%clk 0:00:02.9]} 45. a7 {[%clk
0:00:13.2]} 45... e2 {[%clk 0:00:02.9]} 46. Rb1 {[%clk 0:00:13.6]} 46... Nc7
{[%clk 0:00:03.4]} 47. Re1 {[%clk 0:00:13.7]} 1-0

[Event "Early-Titled-Tuesday-Blitz-April-02-2024"]
[Site "Chess.com"]
[Date "2024.04.02"]
[Round "11"]
[White "chessdjw"]
[Black "Grossboss19"]
[Result "1/2-1/2"]
[WhiteElo "2789"]
[BlackElo "2590"]
[TimeControl "180+1"]
[EndTime "10:08:15 PDT"]
[Termination "Game drawn - insufficient material"]

1. c4 {[%clk 0:03:00.9]} 1... Nf6 {[%clk 0:02:58.1]} 2. Nc3 {[%clk 0:03:01]}
2... e6 {[%clk 0:02:51.4]} 3. d4 {[%clk 0:02:57.8]} 3... d5 {[%clk 0:02:47.5]}
4. cxd5 {[%clk 0:02:57.4]} 4... exd5 {[%clk 0:02:47.1]} 5. Bg5 {[%clk
0:02:57.8]} 5... Be7 {[%clk 0:02:47.2]} 6. e3 {[%clk 0:02:58.2]} 6... O-O {[%clk
0:02:47.7]} 7. Bd3 {[%clk 0:02:57.8]} 7... h6 {[%clk 0:02:47.2]} 8. Bh4 {[%clk
0:02:54.5]} 8... Re8 {[%clk 0:02:46.3]} 9. Qc2 {[%clk 0:02:51]} 9... c6 {[%clk
0:02:43.7]} 10. Nge2 {[%clk 0:02:49.7]} 10... Nbd7 {[%clk 0:02:41.9]} 11. h3
{[%clk 0:02:45.5]} 11... Nh5 {[%clk 0:02:35.5]} 12. Bxe7 {[%clk 0:02:44.2]}
12... Qxe7 {[%clk 0:02:36.4]} 13. g4 {[%clk 0:02:43.9]} 13... Nhf6 {[%clk
0:02:35.1]} 14. O-O-O {[%clk 0:02:44.4]} 14... b5 {[%clk 0:02:31.7]} 15. Ng3
{[%clk 0:02:40.7]} 15... Nb6 {[%clk 0:02:30]} 16. Kb1 {[%clk 0:02:36.5]} 16...
a5 {[%clk 0:02:28.5]} 17. Rhg1 {[%clk 0:02:00.5]} 17... a4 {[%clk 0:02:25.3]}
18. a3 {[%clk 0:01:57.8]} 18... b4 {[%clk 0:02:21]} 19. axb4 {[%clk 0:01:56.7]}
19... Qxb4 {[%clk 0:02:21.9]} 20. Na2 {[%clk 0:01:54.6]} 20... Qb3 {[%clk
0:02:10.9]} 21. Qxb3 {[%clk 0:01:20.9]} 21... axb3 {[%clk 0:02:07.9]} 22. Nc1
{[%clk 0:01:21.8]} 22... Na4 {[%clk 0:01:46.2]} 23. Nxb3 {[%clk 0:01:21.5]}
23... Rb8 {[%clk 0:01:43.5]} 24. Kc2 {[%clk 0:01:21.4]} 24... Re7 {[%clk
0:01:37.3]} 25. Ra1 {[%clk 0:01:15.9]} 25... Reb7 {[%clk 0:01:36.3]} 26. Ra3
{[%clk 0:01:08.2]} 26... c5 {[%clk 0:01:25.2]} 27. Ba6 {[%clk 0:01:01.5]} 27...
Rc7 {[%clk 0:01:02.3]} 28. Bxc8 {[%clk 0:00:33.2]} 28... cxd4+ {[%clk
0:00:58.4]} 29. Kb1 {[%clk 0:00:31.8]} 29... Rcxc8 {[%clk 0:00:50.4]} 30. Rxa4
{[%clk 0:00:23]} 30... Rxb3 {[%clk 0:00:44.9]} 31. Rxd4 {[%clk 0:00:23.5]} 31...
Rcb8 {[%clk 0:00:43.5]} 32. Rd2 {[%clk 0:00:23.6]} 32... d4 {[%clk 0:00:37.1]}
33. exd4 {[%clk 0:00:20.2]} 33... Nd5 {[%clk 0:00:37.2]} 34. Rc1 {[%clk
0:00:15.4]} 34... Nc3+ {[%clk 0:00:32.4]} 35. Kc2 {[%clk 0:00:15.7]} 35... Na4
{[%clk 0:00:26.5]} 36. Kd1 {[%clk 0:00:10.8]} 36... Nxb2+ {[%clk 0:00:23.8]} 37.
Ke2 {[%clk 0:00:11]} 37... Re8+ {[%clk 0:00:23.6]} 38. Kf1 {[%clk 0:00:11.4]}
38... Nd3 {[%clk 0:00:23.1]} 39. Rcd1 {[%clk 0:00:11.1]} 39... Nf4 {[%clk
0:00:22.9]} 40. d5 {[%clk 0:00:10.5]} 40... Rd8 {[%clk 0:00:21.7]} 41. d6 {[%clk
0:00:10.8]} 41... Kf8 {[%clk 0:00:19.5]} 42. d7 {[%clk 0:00:10.1]} 42... Rb7
{[%clk 0:00:18.9]} 43. Nf5 {[%clk 0:00:09.9]} 43... g6 {[%clk 0:00:18.8]} 44.
Nxh6 {[%clk 0:00:09.7]} 44... Nxh3 {[%clk 0:00:19]} 45. Kg2 {[%clk 0:00:08.8]}
45... Nf4+ {[%clk 0:00:18.7]} 46. Kg3 {[%clk 0:00:09.4]} 46... Ne6 {[%clk
0:00:19]} 47. f4 {[%clk 0:00:08.5]} 47... Nc5 {[%clk 0:00:19.3]} 48. Rd5 {[%clk
0:00:06.3]} 48... Ne4+ {[%clk 0:00:19.3]} 49. Kf3 {[%clk 0:00:05.5]} 49... Nf6
{[%clk 0:00:19.8]} 50. R5d3 {[%clk 0:00:04]} 50... Rbxd7 {[%clk 0:00:19.6]} 51.
Rxd7 {[%clk 0:00:03.5]} 51... Rxd7 {[%clk 0:00:19.8]} 52. Rxd7 {[%clk 0:00:03]}
52... Nxd7 {[%clk 0:00:19.7]} 53. g5 {[%clk 0:00:03.9]} 53... Ke7 {[%clk
0:00:19.2]} 54. Ng4 {[%clk 0:00:04.5]} 54... Ke6 {[%clk 0:00:19.5]} 55. Ke4
{[%clk 0:00:04.4]} 55... f5+ {[%clk 0:00:16.6]} 56. gxf6 {[%clk 0:00:04.2]}
56... Nxf6+ {[%clk 0:00:16.9]} 57. Nxf6 {[%clk 0:00:04.7]} 57... Kxf6 {[%clk
0:00:17.8]} 58. Ke3 {[%clk 0:00:05.2]} 58... Kf5 {[%clk 0:00:18.5]} 59. Kf3
{[%clk 0:00:05.8]} 59... g5 {[%clk 0:00:19.3]} 60. fxg5 {[%clk 0:00:06.7]} 60...
Kxg5 {[%clk 0:00:20.1]} 1/2-1/2

[Event "Early-Titled-Tuesday-Blitz-April-02-2024"]
[Site "Chess.com"]
[Date "2024.04.02"]
[Round "11"]
[White "WiktoriaPOL"]
[Black "Slovineanu"]
[Result "1-0"]
[WhiteElo "2350"]
[BlackElo "2451"]
[TimeControl "180+1"]
[EndTime "10:08:15 PDT"]
[Termination "WiktoriaPOL won by resignation"]

1. c4 {[%clk 0:02:56.6]} 1... e5 {[%clk 0:02:58.7]} 2. Nc3 {[%clk 0:02:56.7]}
2... Bb4 {[%clk 0:02:57.5]} 3. Nd5 {[%clk 0:02:55.5]} 3... Be7 {[%clk
0:02:48.5]} 4. Nf3 {[%clk 0:02:43.8]} 4... d6 {[%clk 0:02:47.5]} 5. d4 {[%clk
0:02:42.3]} 5... exd4 {[%clk 0:02:44.1]} 6. Nxd4 {[%clk 0:02:41.2]} 6... Nf6
{[%clk 0:02:42.6]} 7. Nxe7 {[%clk 0:02:37.1]} 7... Qxe7 {[%clk 0:02:42.3]} 8.
Bg5 {[%clk 0:02:31.2]} 8... h6 {[%clk 0:02:36.3]} 9. Bh4 {[%clk 0:02:28.4]} 9...
O-O {[%clk 0:02:28.8]} 10. e3 {[%clk 0:02:26.2]} 10... Nc6 {[%clk 0:02:18.6]}
11. Be2 {[%clk 0:02:20.4]} 11... Nxd4 {[%clk 0:02:10.6]} 12. Qxd4 {[%clk
0:02:18]} 12... Qe5 {[%clk 0:02:02]} 13. Bxf6 {[%clk 0:02:13.5]} 13... Qxf6
{[%clk 0:02:02.3]} 14. Qxf6 {[%clk 0:02:12.8]} 14... gxf6 {[%clk 0:02:02.9]} 15.
O-O {[%clk 0:02:12.6]} 15... Be6 {[%clk 0:01:58.3]} 16. b3 {[%clk 0:02:12.4]}
16... a5 {[%clk 0:01:57.3]} 17. Bf3 {[%clk 0:02:12]} 17... Rab8 {[%clk
0:01:56.6]} 18. Rac1 {[%clk 0:02:09.5]} 18... b6 {[%clk 0:01:52.5]} 19. Bc6
{[%clk 0:02:08.7]} 19... Rfd8 {[%clk 0:01:50.8]} 20. e4 {[%clk 0:02:07.3]} 20...
Kf8 {[%clk 0:01:50.6]} 21. f4 {[%clk 0:02:07.2]} 21... Bd7 {[%clk 0:01:42.7]}
22. Bxd7 {[%clk 0:02:02.1]} 22... Rxd7 {[%clk 0:01:43]} 23. Rf3 {[%clk 0:01:58]}
23... Re7 {[%clk 0:01:42.6]} 24. Re1 {[%clk 0:01:53.9]} 24... Rbe8 {[%clk
0:01:42.8]} 25. Rfe3 {[%clk 0:01:53.5]} 25... f5 {[%clk 0:01:40.2]} 26. e5
{[%clk 0:01:51.7]} 26... dxe5 {[%clk 0:00:59]} 27. fxe5 {[%clk 0:01:52.6]} 27...
Re6 {[%clk 0:00:53.3]} 28. Kf2 {[%clk 0:01:43]} 28... Rd8 {[%clk 0:00:48.5]} 29.
R1e2 {[%clk 0:01:38.4]} 29... Kg7 {[%clk 0:00:25.6]} 30. Rg3+ {[%clk 0:01:35.8]}
30... Kh7 {[%clk 0:00:25.8]} 31. Rf3 {[%clk 0:01:29.9]} 31... Kg6 {[%clk
0:00:25.6]} 32. h4 {[%clk 0:01:27.3]} 32... Rd4 {[%clk 0:00:21.7]} 33. g3 {[%clk
0:01:22.4]} 33... h5 {[%clk 0:00:18.8]} 34. Rf4 {[%clk 0:01:18.9]} 34... Rd3
{[%clk 0:00:15.2]} 35. Rf3 {[%clk 0:00:54.5]} 35... Rd4 {[%clk 0:00:13.4]} 36.
Rfe3 {[%clk 0:00:48.9]} 36... Rd1 {[%clk 0:00:11.4]} 37. Kg2 {[%clk 0:00:42.9]}
37... Rd4 {[%clk 0:00:10.9]} 38. Rf3 {[%clk 0:00:37.4]} 38... Rd1 {[%clk
0:00:09.6]} 39. Rf1 {[%clk 0:00:27.4]} 39... Rd4 {[%clk 0:00:08.8]} 40. Rfe1
{[%clk 0:00:23.9]} 40... f4 {[%clk 0:00:08.9]} 41. gxf4 {[%clk 0:00:22.9]} 41...
Kf5 {[%clk 0:00:09.3]} 42. Rf2 {[%clk 0:00:09.8]} 42... c5 {[%clk 0:00:08.6]}
43. Ref1 {[%clk 0:00:07]} 43... Rg6+ {[%clk 0:00:08.1]} 44. Kh3 {[%clk
0:00:06.9]} 44... Rg4 {[%clk 0:00:08]} 45. Rf3 {[%clk 0:00:06.4]} 45... Rgxf4
{[%clk 0:00:08.1]} 46. Rxf4+ {[%clk 0:00:05.4]} 46... Rxf4 {[%clk 0:00:08.2]}
47. Re1 {[%clk 0:00:04.9]} 47... Re4 {[%clk 0:00:07.7]} 48. Rf1+ {[%clk
0:00:04.5]} 48... Ke6 {[%clk 0:00:07.4]} 49. Rf6+ {[%clk 0:00:04.3]} 49... Kxe5
{[%clk 0:00:07]} 50. Rxf7 {[%clk 0:00:04.7]} 50... Re2 {[%clk 0:00:06.5]} 51.
Re7+ {[%clk 0:00:04.9]} 51... Kd4 {[%clk 0:00:05.4]} 52. Rxe2 {[%clk 0:00:05.5]}
1-0

[Event "Early-Titled-Tuesday-Blitz-April-02-2024"]
[Site "Chess.com"]
[Date "2024.04.02"]
[Round "11"]
[White "emeli_chess"]
[Black "ketster"]
[Result "0-1"]
[WhiteElo "2421"]
[BlackElo "2594"]
[TimeControl "180+1"]
[EndTime "10:08:16 PDT"]
[Termination "ketster won on time"]

1. d4 {[%clk 0:03:00.9]} 1... d5 {[%clk 0:02:59.1]} 2. c4 {[%clk 0:03:00.1]}
2... e6 {[%clk 0:02:59.4]} 3. Nc3 {[%clk 0:03:00.3]} 3... c5 {[%clk 0:02:59.6]}
4. cxd5 {[%clk 0:02:58.2]} 4... cxd4 {[%clk 0:02:58.8]} 5. Qa4+ {[%clk
0:02:56.7]} 5... Bd7 {[%clk 0:02:58.3]} 6. Qxd4 {[%clk 0:02:56.6]} 6... exd5
{[%clk 0:02:58.8]} 7. Qxd5 {[%clk 0:02:57.1]} 7... Nf6 {[%clk 0:02:57.8]} 8. Qd1
{[%clk 0:02:55.4]} 8... Bb4 {[%clk 0:02:56.3]} 9. Nf3 {[%clk 0:02:49.5]} 9...
O-O {[%clk 0:02:56.3]} 10. e3 {[%clk 0:02:49]} 10... Qc7 {[%clk 0:02:48.1]} 11.
Be2 {[%clk 0:02:41.9]} 11... Ne4 {[%clk 0:02:44.5]} 12. O-O {[%clk 0:02:31.3]}
12... Nxc3 {[%clk 0:02:40.4]} 13. bxc3 {[%clk 0:02:31.4]} 13... Bxc3 {[%clk
0:02:41.3]} 14. Rb1 {[%clk 0:02:31.4]} 14... Bc6 {[%clk 0:02:35.2]} 15. Nd4
{[%clk 0:02:15.1]} 15... Rd8 {[%clk 0:02:29.5]} 16. Qc2 {[%clk 0:02:05.4]} 16...
Bxd4 {[%clk 0:02:16.1]} 17. exd4 {[%clk 0:02:05]} 17... Rxd4 {[%clk 0:02:14.8]}
18. Bb2 {[%clk 0:01:59.1]} 18... Rh4 {[%clk 0:02:05.7]} 19. h3 {[%clk
0:01:56.4]} 19... Nd7 {[%clk 0:02:00.2]} 20. Qf5 {[%clk 0:01:45.1]} 20... Rh6
{[%clk 0:01:51.2]} 21. Rbc1 {[%clk 0:01:22.7]} 21... Qb6 {[%clk 0:01:43.4]} 22.
Ba1 {[%clk 0:01:09.1]} 22... Rg6 {[%clk 0:01:38]} 23. Bf3 {[%clk 0:01:07.4]}
23... Nf8 {[%clk 0:01:29.6]} 24. Bxc6 {[%clk 0:01:04.8]} 24... Rxc6 {[%clk
0:01:29.2]} 25. Rxc6 {[%clk 0:01:04.3]} 25... Qxc6 {[%clk 0:01:28.9]} 26. Re1
{[%clk 0:00:58.3]} 26... Re8 {[%clk 0:01:23.8]} 27. Rxe8 {[%clk 0:00:53.3]}
27... Qxe8 {[%clk 0:01:24.7]} 28. Qe5 {[%clk 0:00:53]} 28... Qxe5 {[%clk
0:01:19.1]} 29. Bxe5 {[%clk 0:00:52.3]} 29... f6 {[%clk 0:01:18.2]} 30. Bd4
{[%clk 0:00:48.1]} 30... a6 {[%clk 0:01:17.1]} 31. f3 {[%clk 0:00:42.3]} 31...
Kf7 {[%clk 0:01:16.6]} 32. Kf2 {[%clk 0:00:42.2]} 32... Ke6 {[%clk 0:01:17.3]}
33. Ke3 {[%clk 0:00:41.7]} 33... Kd5 {[%clk 0:01:17.8]} 34. Kd3 {[%clk 0:00:42]}
34... Ne6 {[%clk 0:01:17.4]} 35. Bb6 {[%clk 0:00:40.3]} 35... Nc5+ {[%clk
0:01:13.8]} 36. Ke3 {[%clk 0:00:36.9]} 36... Nd7 {[%clk 0:01:10.1]} 37. Bd4
{[%clk 0:00:28.9]} 37... Ne5 {[%clk 0:01:09.1]} 38. f4 {[%clk 0:00:23.3]} 38...
Nc4+ {[%clk 0:01:07]} 39. Kd3 {[%clk 0:00:23.6]} 39... b5 {[%clk 0:01:06.8]} 40.
g4 {[%clk 0:00:20.8]} 40... Nd6 {[%clk 0:01:02.9]} 41. h4 {[%clk 0:00:15.3]}
41... Ne4 {[%clk 0:00:57.8]} 42. h5 {[%clk 0:00:13.1]} 42... a5 {[%clk
0:00:48.9]} 43. g5 {[%clk 0:00:08]} 43... fxg5 {[%clk 0:00:46.8]} 44. fxg5
{[%clk 0:00:07.8]} 44... g6 {[%clk 0:00:41.1]} 45. hxg6 {[%clk 0:00:08]} 45...
hxg6 {[%clk 0:00:41.8]} 46. Be3 {[%clk 0:00:08.3]} 46... b4 {[%clk 0:00:37.2]}
47. Bc1 {[%clk 0:00:07.3]} 47... a4 {[%clk 0:00:26.8]} 48. a3 {[%clk 0:00:04.5]}
48... b3 {[%clk 0:00:25.2]} 49. Bb2 {[%clk 0:00:02.8]} 49... Nxg5 {[%clk
0:00:24.6]} 50. Kc3 {[%clk 0:00:03.1]} 50... Kc5 {[%clk 0:00:23.2]} 51. Bc1
{[%clk 0:00:03.2]} 51... Ne4+ {[%clk 0:00:22.8]} 52. Kb2 {[%clk 0:00:03.6]}
52... Nd6 {[%clk 0:00:22.7]} 53. Kc3 {[%clk 0:00:01.4]} 53... Nb5+ {[%clk
0:00:22.2]} 54. Kb2 {[%clk 0:00:01.7]} 54... Kc4 {[%clk 0:00:22.7]} 0-1

[Event "Early-Titled-Tuesday-Blitz-April-02-2024"]
[Site "Chess.com"]
[Date "2024.04.02"]
[Round "11"]
[White "zeitnotakrobat"]
[Black "microbear"]
[Result "0-1"]
[WhiteElo "2174"]
[BlackElo "2369"]
[TimeControl "180+1"]
[EndTime "10:08:22 PDT"]
[Termination "microbear won by resignation"]

1. Nf3 {[%clk 0:03:00.9]} 1... Nf6 {[%clk 0:02:57.9]} 2. c4 {[%clk 0:03:01]}
2... g6 {[%clk 0:02:48.7]} 3. b4 {[%clk 0:03:00.6]} 3... Bg7 {[%clk 0:02:47.5]}
4. Bb2 {[%clk 0:03:01.1]} 4... O-O {[%clk 0:02:46.8]} 5. g3 {[%clk 0:03:00.9]}
5... a5 {[%clk 0:02:45.6]} 6. a3 {[%clk 0:02:58.9]} 6... axb4 {[%clk 0:02:35.4]}
7. axb4 {[%clk 0:02:58.7]} 7... Rxa1 {[%clk 0:02:36.3]} 8. Bxa1 {[%clk
0:02:58.9]} 8... d5 {[%clk 0:02:37.2]} 9. cxd5 {[%clk 0:02:57.5]} 9... Nxd5
{[%clk 0:02:37.7]} 10. Bxg7 {[%clk 0:02:57.2]} 10... Kxg7 {[%clk 0:02:38.6]} 11.
Qb3 {[%clk 0:02:56.8]} 11... b6 {[%clk 0:02:08.5]} 12. Bg2 {[%clk 0:02:53.5]}
12... Bb7 {[%clk 0:02:08.7]} 13. O-O {[%clk 0:02:53.4]} 13... Nc6 {[%clk
0:01:59.4]} 14. b5 {[%clk 0:02:50.1]} 14... Na5 {[%clk 0:01:59.4]} 15. Qb2+
{[%clk 0:02:48.8]} 15... f6 {[%clk 0:01:56.5]} 16. d3 {[%clk 0:02:46.7]} 16...
e5 {[%clk 0:01:52.5]} 17. Nbd2 {[%clk 0:02:45.3]} 17... Qd7 {[%clk 0:01:44.8]}
18. h4 {[%clk 0:02:39.7]} 18... h5 {[%clk 0:01:40.5]} 19. Rc1 {[%clk 0:02:38.2]}
19... Rc8 {[%clk 0:01:29.1]} 20. e4 {[%clk 0:02:21.6]} 20... Ne7 {[%clk
0:01:26.3]} 21. d4 {[%clk 0:02:21.2]} 21... exd4 {[%clk 0:01:19.2]} 22. Qxd4
{[%clk 0:02:16.6]} 22... Qxd4 {[%clk 0:01:11.3]} 23. Nxd4 {[%clk 0:02:16.6]}
23... c5 {[%clk 0:01:10.9]} 24. bxc6 {[%clk 0:02:11.4]} 24... Nexc6 {[%clk
0:01:10.5]} 25. Nb5 {[%clk 0:01:58]} 25... Rd8 {[%clk 0:01:02.1]} 26. Nc4 {[%clk
0:01:48.2]} 26... Nxc4 {[%clk 0:00:56.6]} 27. Rxc4 {[%clk 0:01:48]} 27... Rd7
{[%clk 0:00:55.5]} 28. Nc3 {[%clk 0:01:42]} 28... Rd4 {[%clk 0:00:25.8]} 29.
Rxd4 {[%clk 0:01:18.1]} 29... Nxd4 {[%clk 0:00:26.7]} 30. f4 {[%clk 0:01:13.9]}
30... b5 {[%clk 0:00:26.7]} 31. Na2 {[%clk 0:01:11]} 31... Nc2 {[%clk
0:00:24.8]} 32. Kf2 {[%clk 0:01:02.5]} 32... b4 {[%clk 0:00:24.3]} 33. Nc1
{[%clk 0:01:00.7]} 33... Nd4 {[%clk 0:00:24.4]} 34. Ke3 {[%clk 0:00:56.7]} 34...
b3 {[%clk 0:00:23.2]} 35. Nd3 {[%clk 0:00:55.1]} 35... Nf5+ {[%clk 0:00:23.1]}
36. exf5 {[%clk 0:00:52.5]} 36... Bxg2 {[%clk 0:00:24]} 37. fxg6 {[%clk
0:00:52.3]} 37... Kxg6 {[%clk 0:00:24.5]} 38. Kd2 {[%clk 0:00:28.1]} 38... Kf5
{[%clk 0:00:23]} 39. Kc3 {[%clk 0:00:25.7]} 39... Kg4 {[%clk 0:00:22.4]} 40.
Kxb3 {[%clk 0:00:23.5]} 40... Kxg3 {[%clk 0:00:22.6]} 41. f5 {[%clk 0:00:23.9]}
41... Kxh4 {[%clk 0:00:20.1]} 42. Kc4 {[%clk 0:00:22.8]} 42... Be4 {[%clk
0:00:19.5]} 43. Nf4 {[%clk 0:00:22.8]} 43... Bxf5 {[%clk 0:00:19.1]} 44. Nd5
{[%clk 0:00:23]} 44... Kg5 {[%clk 0:00:17.8]} 45. Kd4 {[%clk 0:00:22.8]} 45...
h4 {[%clk 0:00:17.9]} 46. Ke3 {[%clk 0:00:23.2]} 46... Be6 {[%clk 0:00:15.9]}
47. Nc3 {[%clk 0:00:21.9]} 47... Kg6 {[%clk 0:00:15.2]} 48. Kf4 {[%clk
0:00:21.7]} 48... h3 {[%clk 0:00:15.2]} 49. Kg3 {[%clk 0:00:21.7]} 49... Kg5
{[%clk 0:00:15.7]} 50. Ne2 {[%clk 0:00:20.4]} 50... Bg4 {[%clk 0:00:13]} 51. Nf4
{[%clk 0:00:20]} 51... f5 {[%clk 0:00:13.4]} 52. Nd5 {[%clk 0:00:19.8]} 52...
Kg6 {[%clk 0:00:13]} 53. Nf4+ {[%clk 0:00:19]} 53... Kf6 {[%clk 0:00:13.5]} 54.
Nxh3 {[%clk 0:00:16.5]} 54... Bxh3 {[%clk 0:00:13.6]} 55. Kxh3 {[%clk
0:00:16.8]} 55... Ke5 {[%clk 0:00:14.5]} 56. Kg2 {[%clk 0:00:15.1]} 56... Ke4
{[%clk 0:00:15.4]} 57. Kg1 {[%clk 0:00:11.7]} 57... Kf3 {[%clk 0:00:14.5]} 58.
Kf1 {[%clk 0:00:10.6]} 58... f4 {[%clk 0:00:14.8]} 59. Kg1 {[%clk 0:00:10]}
59... Ke2 {[%clk 0:00:15.2]} 60. Kg2 {[%clk 0:00:09.9]} 60... f3+ {[%clk
0:00:16.1]} 61. Kg3 {[%clk 0:00:10.3]} 61... f2 {[%clk 0:00:17]} 0-1